bitfinex/quotes_SOLUSD_20241113
["timestamp","ask_amount","ask_price","bid_price","bid_amount"]
[1731475240480,0.1,205.73,205.68,13.6129]
[1731475240688,22.54201968,205.8,205.68,13.6129]
[1731475241184,22.54201968,205.78,205.68,13.6129]
[1731475241372,22.54201968,205.78,205.64,20.0]
[1731475242466,22.54201968,205.78,205.63,19.4519]
[1731475242662,22.54201968,205.78,205.7,312.0]
[1731475242988,4.8594,205.79,205.7,312.0]
[1731475243162,23.1901,205.86,205.69,9.7233]
[1731475243366,22.54201968,205.83,205.69,9.7233]
[1731475243583,23.1901,205.86,205.69,9.7233]
[1731475243584,22.54201968,205.85,205.69,9.7233]
[1731475244089,22.54201968,205.88,205.72,20.0]
[1731475244270,22.54201968,205.88,205.74,20.0]
[1731475244900,22.54201968,205.84,205.66,3.8899]
[1731475245067,22.54201968,205.78,205.69,9.7229]
[1731475245984,22.54201968,205.86,205.69,9.7229]
[1731475246284,22.54201968,205.84,205.69,9.7229]
[1731475246484,22.54201968,205.84,205.7,23.776884]
[1731475246865,22.54201968,205.84,205.71,13.6113]
[1731475247289,22.54201968,205.86,205.72,20.0]
[1731475247480,22.54201968,205.88,205.72,20.0]
[1731475247675,22.54201968,205.88,205.74,20.0]
[1731475247982,22.54201968,205.9,205.76,20.0]
[1731475248163,22.54201968,205.88,205.76,20.0]
[1731475248368,22.54201968,205.9,205.76,20.0]
[1731475248594,22.54201968,205.92,205.78,20.0]
[1731475248768,22.54201968,205.92,205.79,13.606]
[1731475249274,22.54201968,205.95,205.88,312.0]
[1731475249793,22.54201968,205.92,205.79,13.606]
[1731475250087,22.54201968,205.89,205.79,13.606]
[1731475250789,27.39911968,205.88,205.79,9.7186]
[1731475251089,22.54201968,205.85,205.79,9.7186]
[1731475251274,4.8553,205.96,205.79,9.7186]
[1731475251475,22.54201968,205.94,205.79,9.7186]
[1731475252070,22.54201968,205.94,205.8,20.0]
[1731475252885,22.54201968,205.94,205.87,312.0]
[1731475253390,1.941811,206.01,205.87,315.8858]
[1731475253391,22.54201968,205.96,205.87,315.8858]
[1731475253590,22.54201968,205.98,205.87,13.6006]
[1731475253901,22.54201968,206.0,205.87,13.6006]
[1731475254186,27.39481968,206.07,205.9,20.0]
[1731475254392,4.8522,206.09,205.92,20.0]
[1731475254572,22.54201968,206.09,205.94,20.0]
[1731475254910,22.54201968,206.01,205.91,13.598]
[1731475255294,22.54201968,206.03,205.91,13.598]
[1731475255979,22.54201968,206.01,205.91,13.598]
[1731475256180,22.54201968,206.03,205.92,20.0]
[1731475256490,22.54201968,206.03,205.96,312.0]
[1731475257186,22.54201968,206.05,205.93,13.5968]
[1731475257579,22.54201968,206.07,205.93,33.0208]
[1731475257980,22.54201968,206.05,205.93,33.0208]
[1731475258281,22.54201968,205.99,205.9,3.8852]
[1731475258473,19.510931,206.09,205.9,13.5986]
[1731475258474,22.54201968,206.01,205.9,13.5986]
[1731475259489,22.54201968,206.03,205.9,33.0255]
[1731475259880,22.54201968,206.01,205.9,33.0255]
[1731475260093,22.54201968,206.01,205.97,312.0]
[1731475260697,22.54201968,206.01,205.94,13.5959]
[1731475261188,22.54201968,206.07,205.95,20.0]
[1731475261776,22.54201968,206.09,205.95,20.0]
[1731475261979,22.54201968,206.05,205.94,13.5959]
[1731475262288,22.54201968,206.1,205.94,13.5959]
[1731475262289,22.54201968,206.01,205.94,13.5959]
[1731475262601,22.54201968,206.05,205.94,9.7113]
[1731475263405,22.54201968,206.16,205.95,24.002374]
[1731475263697,22.54201968,206.16,206.08,312.0]
[1731475264075,22.54201968,206.16,206.03,20.0]
[1731475264380,22.54201968,206.18,206.03,20.0]
[1731475264689,22.54201968,206.12,206.02,19.9263]
[1731475264991,22.54201968,206.1,206.02,3.883]
[1731475265491,16.9762,206.17,206.01,13.5915]
[1731475265492,22.54201968,206.08,206.01,13.5915]
[1731475265692,22.54201968,206.08,206.01,9.7082]
[1731475266894,22.54201968,206.06,206.0,7.3758]
[1731475267087,22.54201968,206.04,205.97,312.0]
[1731475267975,27.39561968,206.04,205.97,312.0]
[1731475268194,22.54201968,206.02,205.96,9.7101]
[1731475268400,22.54201968,205.98,205.88,7.6577]
[1731475268696,22.54201968,205.97,205.89,13.5994]
[1731475269195,22.54201968,205.95,205.88,7.6577]
[1731475269598,22.54201968,205.95,205.88,11.5433]
[1731475270179,22.54201968,205.97,205.88,21.2576]
[1731475270377,22.54201968,206.01,205.88,21.2576]
[1731475271104,22.54201968,206.01,205.92,312.0]
[1731475271608,4.8543,206.0,205.92,315.8849]
[1731475271786,22.54201968,205.93,205.83,9.7165]
[1731475271990,22.54201968,205.89,205.82,6.9964]
[1731475272306,22.54201968,205.85,205.78,9.7187]
[1731475272599,22.54201968,205.85,205.78,13.6063]
[1731475272979,22.54201968,205.87,205.78,13.6063]
[1731475273279,229.96261968,206.0,205.78,13.6063]
[1731475273280,22.54201968,205.89,205.78,13.6063]
[1731475273480,22.54201968,205.97,205.79,20.2]
[1731475273685,22.54201968,205.97,205.81,20.0]
[1731475273897,4.8548,205.99,205.81,20.0]
[1731475273898,22.54201968,205.99,205.81,20.0]
[1731475274080,0.1,206.03,205.84,23.776884]
[1731475274081,22.54201968,205.97,205.84,23.776884]
[1731475274402,22.54201968,205.99,205.85,20.0]
[1731475274599,22.54201968,205.99,205.87,20.0]
[1731475274778,22.54201968,205.99,205.92,312.0]
[1731475274975,22.54201968,206.01,205.92,312.0]
[1731475275399,22.54201968,206.01,205.89,20.0]
[1731475275604,22.54201968,206.03,205.9,13.5987]
[1731475276188,22.54201968,206.07,205.93,20.0]
[1731475276397,4.8526,206.08,205.9,13.5987]
[1731475276398,22.54201968,205.98,205.9,13.5987]
[1731475276898,36.73446708,205.96,205.9,9.7134]
[1731475277686,36.73446708,205.94,205.9,9.7134]
[1731475277888,36.73446708,205.92,205.82,7.2173]
[1731475278091,36.73446708,205.9,205.83,3.8865]
[1731475278299,36.73446708,205.92,205.86,312.0]
[1731475279105,36.73446708,205.88,205.83,9.7167]
[1731475279788,36.73446708,205.92,205.83,13.6034]
[1731475280295,36.73446708,205.98,205.84,23.776884]
[1731475280603,36.73446708,205.94,205.84,20.0]
[1731475280905,36.73446708,205.9,205.83,9.7167]
[1731475281096,36.73446708,205.86,205.82,7.2173]
[1731475281301,36.73446708,205.86,205.78,32.842]
[1731475281501,36.73446708,205.88,205.78,32.842]
[1731475282207,36.73446708,205.9,205.83,312.0]
[1731475282408,36.73446708,205.96,205.83,315.8866]
[1731475282602,36.73446708,205.94,205.83,3.8866]
[1731475283298,36.73446708,205.94,205.83,13.6033]
[1731475283706,36.73446708,205.92,205.83,9.7167]
[1731475284695,36.73446708,205.9,205.83,9.7167]
[1731475285591,36.73446708,205.92,205.83,325.6034]
[1731475286014,36.73446708,206.0,205.85,23.776884]
[1731475286192,36.73446708,206.02,205.85,23.976884]
[1731475286394,36.73446708,206.04,205.87,0.1]
[1731475286703,36.73446708,206.06,205.93,20.0]
[1731475286903,4.8529,206.07,205.94,23.776884]
[1731475287107,4.8529,206.07,206.0,36.69645968]
[1731475287504,36.69645968,206.06,205.98,36.69645968]
[1731475287808,4.853,206.06,205.94,36.69645968]
[1731475288009,19.506955,206.13,205.94,36.69645968]
[1731475288010,36.69645968,206.08,206.01,36.69645968]
[1731475288213,36.69645968,206.12,206.03,36.69645968]
[1731475288815,41.54795968,206.12,206.05,36.69645968]
[1731475288999,36.69645968,206.14,206.06,312.0]
[1731475289202,36.69645968,206.16,206.07,36.69645968]
[1731475289401,36.69645968,206.14,206.06,312.0]
[1731475289606,36.69645968,206.14,206.05,44.26835968]
[1731475289916,41.54755968,206.14,206.05,48.15075968]
[1731475290300,36.69645968,206.12,206.05,11.4543]
[1731475290497,36.69645968,206.12,206.05,7.5719]
[1731475290827,36.69645968,206.12,206.05,11.4543]
[1731475291004,36.69645968,206.12,206.05,7.5719]
[1731475291316,4.8511,206.14,206.05,7.5719]
[1731475291317,36.69645968,206.1,206.05,7.5719]
[1731475291710,36.69645968,206.12,206.05,11.4544]
[1731475292013,36.69645968,206.12,206.05,7.5719]
[1731475292222,36.69645968,206.12,206.05,11.4543]
[1731475292399,36.69645968,206.12,206.05,7.5719]
[1731475292711,41.54815968,206.12,206.07,312.0]
[1731475293806,36.69645968,206.12,206.07,312.0]
[1731475294004,36.69645968,206.14,206.06,3.8823]
[1731475294516,36.69645968,206.12,206.05,7.5719]
[1731475294700,36.69645968,206.09,206.05,7.5719]
[1731475294904,36.69645968,206.13,206.05,7.5719]
[1731475295703,36.69645968,206.11,206.05,7.5719]
[1731475296017,36.69645968,206.11,206.05,11.4543]
[1731475296921,22.57528127,206.12,206.07,312.0]
[1731475297602,27.42688127,206.12,206.07,312.0]
[1731475297799,22.57528127,206.14,206.07,312.0]
[1731475298115,0.490469,206.19,206.11,22.57528127]
[1731475298422,0.490469,206.19,206.15,22.57528127]
[1731475298617,0.490469,206.19,206.17,22.57528127]
[1731475299313,0.490469,206.19,206.18,3.8801]
[1731475299721,0.490469,206.19,206.16,9.7008]
[1731475299925,0.490469,206.19,206.11,51.17808127]
[1731475300109,0.490469,206.19,206.11,13.5845]
[1731475300110,22.57528127,206.17,206.11,13.5845]
[1731475300313,23.06575027,206.19,206.11,36.15978127]
[1731475301016,0.490469,206.19,206.14,312.0]
[1731475302131,0.490469,206.19,206.12,13.5842]
[1731475302305,0.490469,206.19,206.15,36.65635999]
[1731475302506,0.490469,206.19,206.13,20.0]
[1731475302711,0.490469,206.19,206.12,13.5842]
[1731475302712,0.490469,206.19,206.16,36.65635999]
[1731475302914,0.490469,206.19,206.18,36.65635999]
[1731475303401,0.490469,206.19,206.18,68.26805999]
[1731475304023,0.490469,206.19,206.18,48.26805999]
[1731475304807,0.490469,206.19,206.18,44.38795999]
[1731475305003,0.490469,206.4,206.19,20.0]
[1731475305226,36.65635999,206.37,206.28,36.65635999]
[1731475305406,41.50215999,206.37,206.28,40.53435999]
[1731475306130,1.938172,206.39,206.32,36.65635999]
[1731475306333,0.490469,206.4,206.34,36.65635999]
[1731475306910,36.65635999,206.39,206.31,7.6539]
[1731475307223,0.490469,206.4,206.32,36.65635999]
[1731475307611,36.65635999,206.39,206.32,9.6935]
[1731475307813,36.65635999,206.37,206.31,7.6539]
[1731475309503,36.65635999,206.37,206.31,11.5313]
[1731475310015,36.65635999,206.35,206.27,9.6958]
[1731475310211,36.65635999,206.35,206.26,44.84615999]
[1731475310212,36.65635999,206.31,206.26,8.1898]
[1731475310417,36.65635999,206.33,206.26,8.1898]
[1731475310818,36.65635999,206.35,206.26,58.42105999]
[1731475311026,36.65635999,206.37,206.28,36.65635999]
[1731475311213,41.50215999,206.37,206.29,3.878]
[1731475311615,36.65635999,206.39,206.3,36.65635999]
[1731475311821,41.50155999,206.39,206.3,36.65635999]
[1731475312023,36.65635999,206.39,206.3,36.65635999]
[1731475312210,0.490469,206.4,206.35,36.65635999]
[1731475312814,0.490469,206.4,206.37,36.65635999]
[1731475313335,0.490469,206.4,206.37,40.53285999]
[1731475314121,0.490469,206.4,206.37,50.22415999]
[1731475314428,0.490469,206.4,206.37,9.6913]
[1731475314631,0.490469,206.4,206.37,13.5678]
[1731475314823,0.490469,206.4,206.37,9.6913]
[1731475315128,0.490469,206.4,206.37,321.6913]
[1731475315329,0.490469,206.4,206.37,9.6913]
[1731475316235,0.490469,206.4,206.35,36.65635999]
[1731475316420,36.65635999,206.39,206.28,3.8781]
[1731475316624,36.65635999,206.37,206.28,40.53445999]
[1731475317414,36.65635999,206.37,206.28,50.22995999]
[1731475317633,36.65635999,206.35,206.28,13.5736]
[1731475318318,36.65635999,206.35,206.28,312.0]
[1731475318735,36.65635999,206.37,206.28,362.22995999]
[1731475319311,4.8451,206.39,206.28,362.22995999]
[1731475319312,36.65635999,206.35,206.28,321.6955]
[1731475319511,36.65635999,206.35,206.28,358.35185999]
[1731475319717,36.65635999,206.35,206.28,362.23005999]
[1731475320128,4.8463,206.34,206.28,312.0]
[1731475320333,4.8463,206.34,206.26,8.1898]
[1731475320334,36.65635999,206.33,206.26,8.1898]
[1731475320826,4.8459,206.36,206.28,36.65635999]
[1731475321431,36.65635999,206.33,206.26,17.8862]
[1731475321635,36.65635999,206.33,206.26,21.7647]
[1731475321821,4.8465,206.34,206.26,58.42105999]
[1731475322134,4.8465,206.34,206.26,54.54255999]
[1731475322326,36.65635999,206.33,206.26,8.1898]
[1731475322529,36.65635999,206.29,206.21,3.8795]
[1731475322717,36.65635999,206.33,206.24,36.65635999]
[1731475322917,22.52864266,206.33,206.24,22.52864266]
[1731475323242,4.8465,206.34,206.22,22.52864266]
[1731475323243,22.52864266,206.31,206.22,22.52864266]
[1731475323438,22.52864266,206.33,206.26,312.0]
[1731475323824,4.8468,206.32,206.26,312.0]
[1731475324021,22.52864266,206.33,206.26,334.52864266]
[1731475324234,22.52864266,206.37,206.28,22.52864266]
[1731475324444,22.52864266,206.33,206.24,22.52864266]
[1731475324644,22.52864266,206.29,206.2,30.58334266]
[1731475324971,23.776884,206.38,206.24,22.52864266]
[1731475325114,22.52864266,206.31,206.22,22.52864266]
[1731475325522,22.52864266,206.33,206.24,22.52864266]
[1731475325736,22.52864266,206.33,206.25,3.8787]
[1731475325935,22.52864266,206.33,206.25,13.5756]
[1731475326250,4.8454,206.38,206.3,22.52864266]
[1731475326626,22.52864266,206.35,206.26,22.52864266]
[1731475327028,0.490469,206.4,206.32,22.52864266]
[1731475327348,0.490469,206.4,206.38,334.52864266]
[1731475327841,0.490469,206.4,206.38,22.52864266]
[1731475328047,0.490469,206.4,206.39,3.8761]
[1731475329138,0.490469,206.4,206.38,32.21934266]
[1731475329532,0.490469,206.4,206.36,22.52864266]
[1731475329933,0.490469,206.4,206.36,26.40524266]
[1731475330227,0.490469,206.4,206.34,20.1176]
[1731475330228,0.490469,206.4,206.34,42.64624266]
[1731475330421,5.335569,206.4,206.34,22.52864266]
[1731475330820,5.335569,206.4,206.33,8.0704]
[1731475331029,0.490469,206.4,206.37,22.52864266]
[1731475331547,0.490469,206.4,206.35,22.52864266]
[1731475332044,0.490469,206.4,206.33,21.6407]
[1731475332940,0.490469,206.4,206.33,17.7636]
[1731475333335,0.490469,206.4,206.33,21.6408]
[1731475333531,22.99647199,206.4,206.33,8.0704]
[1731475333736,27.84157199,206.4,206.33,8.0704]
[1731475334135,22.99647199,206.4,206.33,8.0704]
[1731475334346,0.490469,206.4,206.33,11.9476]
[1731475334728,0.490469,206.4,206.34,43.776884]
[1731475335948,22.03594383,206.46,206.34,43.776884]
[1731475336127,22.50600299,206.48,206.34,43.776884]
[1731475336328,22.50600299,206.48,206.37,20.0]
[1731475336936,22.50600299,206.46,206.35,13.5691]
[1731475337140,22.50600299,206.44,206.35,32.9536]
[1731475337349,22.50600299,206.42,206.35,9.6922]
[1731475337539,22.50600299,206.38,206.33,8.0704]
[1731475337846,22.50600299,206.42,206.33,333.6408]
[1731475338254,22.50600299,206.42,206.33,21.6408]
[1731475338744,22.50600299,206.4,206.33,21.6408]
[1731475339047,22.50600299,206.38,206.3,3.8777]
[1731475339246,22.50600299,206.36,206.29,3.878]
[1731475339459,22.50600299,206.36,206.29,13.573]
[1731475340152,22.50600299,206.34,206.29,9.695]
[1731475340328,22.50600299,206.34,206.27,8.0948]
[1731475340531,27.35240299,206.34,206.27,8.0948]
[1731475340733,22.50600299,206.32,206.24,13.5757]
[1731475340955,22.50600299,206.34,206.24,13.5757]
[1731475341133,22.50600299,206.36,206.27,312.0]
[1731475341641,22.50600299,206.36,206.24,13.5757]
[1731475341843,4.8451,206.39,206.24,13.5757]
[1731475341844,22.50600299,206.38,206.24,13.5757]
[1731475342226,22.50600299,206.38,206.27,20.0]
[1731475342545,22.50600299,206.36,206.26,13.5749]
[1731475342726,22.50600299,206.38,206.27,20.0]
[1731475342929,27.35150299,206.38,206.27,20.0]
[1731475343151,22.50600299,206.36,206.26,13.5749]
[1731475343352,22.50600299,206.38,206.27,20.0]
[1731475343551,22.50600299,206.44,206.3,23.776884]
[1731475344244,22.50600299,206.44,206.26,33.0678]
[1731475344245,22.50600299,206.44,206.35,7.7152]
[1731475344545,4.8428,206.49,206.35,7.7152]
[1731475344736,22.50600299,206.47,206.43,312.0]
[1731475345143,4.8428,206.49,206.35,7.7152]
[1731475345144,22.50600299,206.44,206.35,7.7152]
[1731475345349,4.8428,206.49,206.35,7.7152]
[1731475345350,22.50600299,206.42,206.35,7.7152]
[1731475345733,22.50600299,206.38,206.3,7.7152]
[1731475346040,22.50600299,206.34,206.24,9.6972]
[1731475346433,22.50600299,206.34,206.24,13.5761]
[1731475347251,27.35240299,206.34,206.24,13.5761]
[1731475347842,22.50600299,206.4,206.27,20.0]
[1731475348053,22.50600299,206.4,206.31,312.0]
[1731475348234,22.50600299,206.42,206.31,312.0]
[1731475348433,22.50600299,206.42,206.32,13.571]
[1731475348753,4.8445,206.42,206.32,13.571]
[1731475348952,36.57274741,206.43,206.32,13.571]
[1731475349254,36.57274741,206.4,206.32,13.571]
[1731475349558,36.57274741,206.4,206.32,9.6936]
[1731475349850,36.57274741,206.36,206.28,3.8781]
[1731475350031,36.57274741,206.38,206.28,3.8781]
[1731475350227,36.57274741,206.4,206.28,3.8781]
[1731475350432,0.2,206.46,206.27,9.696]
[1731475350433,4.8448,206.41,206.27,9.696]
[1731475350647,36.57274741,206.44,206.27,9.696]
[1731475350847,36.57274741,206.44,206.29,8.0641]
[1731475351355,36.57274741,206.44,206.31,23.776884]
[1731475351657,12.108,206.48,206.37,312.0]
[1731475351658,36.57274741,206.42,206.37,312.0]
[1731475351948,36.57274741,206.38,206.29,8.0641]
[1731475352150,36.57274741,206.34,206.29,8.0641]
[1731475352544,36.57274741,206.32,206.23,11.4182]
[1731475352750,36.57274741,206.34,206.23,21.1161]
[1731475353147,36.57274741,206.32,206.23,17.237]
[1731475353456,36.57274741,206.34,206.23,21.1161]
[1731475353638,41.41904741,206.34,206.23,21.1161]
[1731475353963,36.57274741,206.36,206.23,21.1161]
[1731475354266,36.57274741,206.36,206.24,20.0]
[1731475354555,16.9565,206.41,206.23,21.1161]
[1731475354556,36.57274741,206.32,206.23,7.5391]
[1731475354758,36.57274741,206.27,206.23,7.5391]
[1731475354990,36.57274741,206.25,206.18,312.0]
[1731475355255,36.57274741,206.22,206.17,7.596]
[1731475355643,36.57274741,206.24,206.17,7.596]
[1731475355851,41.42164741,206.24,206.17,7.596]
[1731475356154,41.42114741,206.26,206.17,11.4762]
[1731475356360,41.42064741,206.28,206.17,21.1769]
[1731475356739,36.57274741,206.26,206.17,21.1769]
[1731475357854,4.8484,206.25,206.17,21.1769]
[1731475358055,4.8484,206.25,206.18,312.0]
[1731475358444,36.57274741,206.24,206.18,312.0]
[1731475358655,36.57274741,206.31,206.17,9.7007]
[1731475358834,36.57274741,206.25,206.13,3.881]
[1731475359040,36.57274741,206.23,206.13,13.5836]
[1731475359657,36.57274741,206.25,206.13,13.5836]
[1731475359958,36.57274741,206.25,206.15,13.5822]
[1731475360344,4.8483,206.26,206.16,20.0]
[1731475360955,36.57274741,206.25,206.15,9.7016]
[1731475361263,36.57274741,206.23,206.15,13.5822]
[1731475361648,36.57274741,206.23,206.16,312.0]
[1731475361851,4.8483,206.26,206.16,312.0]
[1731475361852,36.6498909,206.2,206.16,312.0]
[1731475362055,36.6498909,206.18,206.12,7.5129]
[1731475363059,41.4999909,206.18,206.12,7.5129]
[1731475363361,36.6498909,206.2,206.12,7.5129]
[1731475363960,36.6498909,206.18,206.09,9.7041]
[1731475364168,36.6498909,206.16,206.09,9.7041]
[1731475365058,36.6498909,206.18,206.1,36.6498909]
[1731475365253,36.6498909,206.2,206.1,36.6498909]
[1731475365440,36.6498909,206.18,206.1,36.6498909]
[1731475367145,4.8503,206.17,206.1,36.6498909]
[1731475367347,4.8503,206.17,206.09,13.5858]
[1731475367562,4.8503,206.17,206.07,7.5165]
[1731475367563,36.6498909,206.14,206.07,7.5165]
[1731475368254,36.6498909,206.29,206.13,36.6498909]
[1731475368562,36.6498909,206.29,206.2,348.6498909]
[1731475368763,27.38360554,206.3,206.2,334.53630554]
[1731475368949,27.38360554,206.3,206.21,3.8795]
[1731475369344,22.53630554,206.28,206.2,22.53630554]
[1731475369659,22.53630554,206.28,206.19,20.9144]
[1731475370050,22.53630554,206.28,206.2,22.53630554]
[1731475370861,4.848,206.27,206.2,22.53630554]
[1731475371171,22.53630554,206.22,206.12,7.7608]
[1731475371460,4.848,206.27,206.12,7.7608]
[1731475371461,22.53630554,206.2,206.12,7.7608]
[1731475371640,22.53630554,206.18,206.12,7.7608]
[1731475372246,22.53630554,206.16,206.12,7.7608]
[1731475372563,22.53630554,206.14,206.06,33.93580554]
[1731475372773,4.8513,206.13,206.06,11.3995]
[1731475374767,36.67505307,206.14,206.06,48.07455307]
[1731475374984,36.67505307,206.18,206.08,36.67505307]
[1731475375153,36.67505307,206.16,206.06,57.78045307]
[1731475375461,36.67505307,206.14,206.06,53.89825307]
[1731475375652,36.67505307,206.14,206.08,312.0]
[1731475376049,36.67505307,206.16,206.08,312.0]
[1731475376661,36.67505307,206.14,206.08,312.0]
[1731475376848,4.8513,206.13,206.08,312.0]
[1731475378265,36.67505307,206.16,206.08,312.0]
[1731475378566,4.8508,206.15,206.08,312.0]
[1731475379469,4.8508,206.15,206.06,57.78055307]
[1731475381171,36.67505307,206.1,205.96,8.0434]
[1731475381384,36.67505307,206.08,205.99,36.67505307]
[1731475381552,36.67505307,206.08,205.97,13.5937]
[1731475381871,36.67505307,206.08,205.99,36.67505307]
[1731475382073,36.67505307,206.06,205.97,50.26875307]
[1731475382372,36.67505307,206.12,206.03,36.67505307]
[1731475382567,36.67505307,206.12,206.03,312.0]
[1731475382775,36.67505307,206.08,206.03,312.0]
[1731475383276,4.8527,206.07,206.03,312.0]
[1731475383865,4.8516,206.12,206.05,36.67505307]
[1731475384074,41.52665307,206.12,206.03,40.55795307]
[1731475384568,41.52665307,206.12,206.01,36.67505307]
[1731475384569,36.67505307,206.1,206.01,36.67505307]
[1731475384775,41.52665307,206.12,206.03,36.67505307]
[1731475385278,41.52665307,206.12,206.04,3.8827]
[1731475386172,41.52665307,206.12,206.02,13.5904]
[1731475386376,36.67505307,206.1,206.02,13.5904]
[1731475386983,36.67505307,206.08,206.02,312.0]
[1731475387274,36.67505307,206.1,206.02,312.0]
[1731475387856,36.67505307,206.08,206.02,312.0]
[1731475388353,16.9804,206.12,205.96,8.0434]
[1731475388354,36.67505307,206.04,205.96,8.0434]
[1731475388852,36.67505307,206.04,205.96,11.9276]
[1731475389055,36.67505307,206.02,205.96,8.0434]
[1731475389749,36.67505307,206.04,205.96,8.0434]
[1731475389954,36.67505307,206.02,205.96,8.0434]
[1731475390168,36.67505307,206.04,205.96,8.0434]
[1731475390365,4.8536,206.03,205.96,8.0434]
[1731475390567,4.8536,206.03,205.96,11.9275]
[1731475390761,4.8536,206.03,205.96,8.0434]
[1731475390968,36.67505307,206.06,205.97,36.67505307]
[1731475391480,36.67505307,206.06,205.99,312.0]
[1731475391864,36.67505307,206.08,205.99,36.67505307]
[1731475392381,4.8522,206.09,206.01,36.67505307]
[1731475392682,4.8522,206.09,206.02,3.8831]
[1731475393476,36.67505307,206.12,206.03,36.67505307]
[1731475393668,41.52675307,206.12,206.03,36.67505307]
[1731475394061,36.67505307,206.16,206.07,36.67505307]
[1731475394368,36.67505307,206.16,206.08,7.6368]
[1731475394571,36.67505307,206.15,206.08,7.6368]
[1731475394879,36.67505307,206.15,206.09,312.0]
[1731475395870,36.67505307,206.11,206.03,48.33185307]
[1731475396762,22.5878369,206.07,205.97,22.5878369]
[1731475397081,22.5878369,206.07,205.99,22.5878369]
[1731475397381,22.5878369,206.1,206.01,22.5878369]
[1731475397861,4.8522,206.09,206.02,3.8831]
[1731475398667,22.5878369,206.1,206.02,13.5908]
[1731475398875,27.4398369,206.1,206.04,312.0]
[1731475399072,27.4384369,206.16,206.07,22.5878369]
[1731475399265,22.5878369,206.14,206.05,22.5878369]
[1731475399480,22.5878369,206.12,206.03,22.5878369]
[1731475399783,27.4394369,206.12,206.04,3.8827]
[1731475400879,12.1257,206.18,206.04,3.8827]
[1731475400880,27.4390369,206.14,206.05,22.5878369]
[1731475401187,22.5878369,206.16,206.07,22.5878369]
[1731475402377,22.5878369,206.14,206.08,312.0]
[1731475402964,22.5878369,206.16,206.08,315.8818]
[1731475403681,22.5878369,206.16,206.08,312.0]
[1731475404077,22.5878369,206.14,206.08,315.8819]
[1731475404464,22.5878369,206.16,206.08,315.8819]
[1731475404967,4.8508,206.15,206.08,315.8819]
[1731475405676,22.5878369,206.14,206.03,22.5878369]
[1731475405990,22.5878369,206.14,206.04,13.5894]
[1731475406881,22.5878369,206.14,205.98,19.4188]
[1731475406882,22.5878369,206.07,205.96,9.7104]
[1731475407093,22.5878369,206.02,205.93,3.8848]
[1731475407588,22.5878369,206.06,205.98,22.5878369]
[1731475407793,22.5878369,206.08,205.98,22.5878369]
[1731475408286,22.5878369,206.08,206.0,22.5878369]
[1731475408783,22.5878369,206.1,206.0,334.5878369]
[1731475408983,4.8522,206.09,206.01,3.8833]
[1731475409181,22.5878369,206.08,206.01,3.8833]
[1731475409372,4.8522,206.09,206.01,3.8833]
[1731475410789,22.5878369,206.08,206.0,22.5878369]
[1731475410970,22.5878369,206.08,206.0,26.4712369]
[1731475411285,22.5878369,206.14,206.06,22.5878369]
[1731475412169,22.5878369,206.14,206.06,334.5878369]
[1731475412480,4.8513,206.13,206.06,334.5878369]
[1731475412885,4.8513,206.13,206.06,312.0]
[1731475413592,22.5878369,206.1,206.04,8.0406]
[1731475414687,22.5878369,206.12,206.04,40.3352369]
[1731475414886,4.8513,206.13,206.06,22.5878369]
[1731475415872,4.8513,206.13,206.06,26.4700369]
[1731475416072,0.1,206.21,206.06,26.4700369]
[1731475416073,22.5878369,206.18,206.08,22.5878369]
[1731475416291,22.5878369,206.18,206.1,22.5878369]
[1731475416588,22.5878369,206.18,206.1,334.5878369]
[1731475417002,22.5878369,206.16,206.1,312.0]
[1731475417885,4.8508,206.15,206.1,312.0]
[1731475418072,22.5878369,206.14,206.1,312.0]
[1731475418395,22.5878369,206.12,206.04,11.9232]
[1731475418588,22.5878369,206.12,206.04,34.5110369]
[1731475419592,22.5878369,206.14,206.06,22.5878369]
[1731475420478,22.5878369,206.14,205.96,0.1]
[1731475420479,22.5878369,206.07,205.95,9.7109]
[1731475420679,22.5878369,206.07,205.97,22.5878369]
[1731475421082,22.5878369,206.09,205.99,22.5878369]
[1731475421278,22.5878369,206.09,206.02,312.0]